[Event "Titled Tuesday Blitz December 27 Early 2022"]
[White "Bluebaum, Matthias"]
[Black "Bok, Benjamin"]
[WhiteFideId "24651516"]
[BlackFideId "1017063"]
[WhiteElo "2669"]
[BlackElo "2607"]
[Result "1-0"]
[Round "05"]
[TimeControl "180+2"]
[Date "2022.12.27"]
[WhiteClock "0:00:56"]
[BlackClock "0:00:02"]

1. d4 {[%clk 0:03:00]}  Nf6 {[%clk 0:02:59]} 2. c4 {[%clk 0:03:01]}  e6 {[%clk 0:03:00]} 3. Nc3 {[%clk 0:03:01]}  Bb4 {[%clk 0:02:58]} 4. e3 {[%clk 0:03:02]}  O-O {[%clk 0:02:58]} 5. Bd2 {[%clk 0:03:03]}  c5 {[%clk 0:02:56]} 6. a3 {[%clk 0:03:03]}  Bxc3 {[%clk 0:02:56]} 7. Bxc3 {[%clk 0:03:04]}  Ne4 {[%clk 0:02:57]} 8. Ne2 {[%clk 0:03:04]}  b6 {[%clk 0:02:56]} 9. d5 {[%clk 0:03:05]}  Ba6 {[%clk 0:02:53]} 10. Qd3 {[%clk 0:03:05]}  Nxc3 {[%clk 0:02:40]} 11. Nxc3 {[%clk 0:03:04]}  e5 {[%clk 0:02:28]} 12. d6 {[%clk 0:02:46]}  Nc6 {[%clk 0:02:26]} 13. Qf5 {[%clk 0:02:41]}  Na5 {[%clk 0:02:03]} 14. b4 {[%clk 0:02:24]}  cxb4 {[%clk 0:00:42]} 15. axb4 {[%clk 0:02:25]}  Nxc4 {[%clk 0:00:42]} 16. Rxa6 {[%clk 0:02:21]}  Qc8 {[%clk 0:00:42]} 17. Ra1 {[%clk 0:01:46]}  Nxe3 {[%clk 0:00:42]} 18. Qd3 {[%clk 0:01:46]}  Nxf1 {[%clk 0:00:40]} 19. Rxf1 {[%clk 0:01:47]}  Qc6 {[%clk 0:00:39]} 20. b5 {[%clk 0:01:31]}  Qxg2 {[%clk 0:00:37]} 21. Qg3 {[%clk 0:01:31]}  Qb7 {[%clk 0:00:33]} 22. Rg1 {[%clk 0:01:31]}  g6 {[%clk 0:00:33]} 23. Qg2 {[%clk 0:01:31]}  e4 {[%clk 0:00:30]} 24. Qg5 {[%clk 0:01:25]}  f5 {[%clk 0:00:27]} 25. Qd2 {[%clk 0:01:15]}  Rf7 {[%clk 0:00:16]} 26. Qd4 {[%clk 0:01:12]}  Re8 {[%clk 0:00:10]} 27. Nd5 {[%clk 0:01:10]}  Rff8 {[%clk 0:00:03]} 28. Ne7+ {[%clk 0:01:07]}  Kf7 {[%clk 0:00:03]} 29. Rc1 {[%clk 0:01:05]}  Qb8 {[%clk 0:00:02]} 30. Rc7 {[%clk 0:00:56]} 1-0


[Site "https://www.chess.com"]

[Event "Titled Tuesday Blitz December 27 Early 2022"]
[White "Bryakin, Mikhail"]
[Black "Tomb, Maroun"]
[WhiteFideId "4165314"]
[BlackFideId "5300398"]
[WhiteElo "2455"]
[BlackElo "2090"]
[Result "1-0"]
[Round "05"]
[TimeControl "180+2"]
[Date "2022.12.27"]
[WhiteClock "0:01:47"]
[BlackClock "0:01:07"]

1. Nf3 {[%clk 0:02:53]}  d6 {[%clk 0:02:58]} 2. g3 {[%clk 0:02:50]}  Nf6 {[%clk 0:02:58]} 3. Bg2 {[%clk 0:02:51]}  e5 {[%clk 0:02:58]} 4. O-O {[%clk 0:02:51]}  Be7 {[%clk 0:02:52]} 5. d3 {[%clk 0:02:52]}  O-O {[%clk 0:02:52]} 6. Nbd2 {[%clk 0:02:52]}  c6 {[%clk 0:02:52]} 7. e4 {[%clk 0:02:53]}  b5 {[%clk 0:02:50]} 8. Qe2 {[%clk 0:02:53]}  Nbd7 {[%clk 0:02:49]} 9. h3 {[%clk 0:02:53]}  Re8 {[%clk 0:02:48]} 10. Nh4 {[%clk 0:02:53]}  Bf8 {[%clk 0:02:48]} 11. a4 {[%clk 0:02:50]}  Bb7 {[%clk 0:02:45]} 12. b3 {[%clk 0:02:48]}  d5 {[%clk 0:02:44]} 13. Nf5 {[%clk 0:02:45]}  g6 {[%clk 0:02:43]} 14. Ne3 {[%clk 0:02:44]}  a6 {[%clk 0:02:33]} 15. Bb2 {[%clk 0:02:39]}  Qb6 {[%clk 0:02:32]} 16. Kh2 {[%clk 0:02:34]}  Rad8 {[%clk 0:02:31]} 17. Ng4 {[%clk 0:02:31]}  Bg7 {[%clk 0:02:16]} 18. Nf3 {[%clk 0:02:22]}  dxe4 {[%clk 0:01:53]} 19. dxe4 {[%clk 0:02:15]}  Nxe4 {[%clk 0:01:50]} 20. Qxe4 {[%clk 0:02:10]}  f5 {[%clk 0:01:51]} 21. Qe2 {[%clk 0:02:08]}  e4 {[%clk 0:01:49]} 22. Bxg7 {[%clk 0:01:58]}  exf3 {[%clk 0:01:49]} 23. Qxf3 {[%clk 0:01:59]}  fxg4 {[%clk 0:01:30]} 24. Qc3 {[%clk 0:01:58]}  b4 {[%clk 0:01:14]} 25. Qb2 {[%clk 0:01:49]}  gxh3 {[%clk 0:01:12]} 26. Bxh3 {[%clk 0:01:50]}  c5 {[%clk 0:01:11]} 27. Rae1 {[%clk 0:01:48]}  Rxe1 {[%clk 0:01:06]} 28. Rxe1 {[%clk 0:01:49]}  c4 {[%clk 0:01:07]} 29. Be6+ {[%clk 0:01:47]} 1-0


[Site "https://www.chess.com"]

[Event "Titled Tuesday Blitz December 27 Early 2022"]
[White "Cardona, Liulia"]
[Black "Postnikov, Artem"]
[WhiteFideId "3505189"]
[BlackFideId "34153575"]
[WhiteElo "2115"]
[BlackElo "2197"]
[Result "0-1"]
[Round "05"]
[TimeControl "180+2"]
[Date "2022.12.27"]
[WhiteClock "0:00:19"]
[BlackClock "0:00:20"]

1. e4 {[%clk 0:03:00]}  c6 {[%clk 0:02:59]} 2. Nc3 {[%clk 0:03:00]}  d5 {[%clk 0:02:59]} 3. Qf3 {[%clk 0:03:00]}  dxe4 {[%clk 0:02:58]} 4. Nxe4 {[%clk 0:03:01]}  Nf6 {[%clk 0:02:58]} 5. Nxf6+ {[%clk 0:03:02]}  exf6 {[%clk 0:02:58]} 6. c3 {[%clk 0:03:02]}  Bd6 {[%clk 0:02:59]} 7. d4 {[%clk 0:03:02]}  O-O {[%clk 0:02:55]} 8. Bd3 {[%clk 0:03:02]}  Nd7 {[%clk 0:02:53]} 9. Ne2 {[%clk 0:03:03]}  Re8 {[%clk 0:02:52]} 10. O-O {[%clk 0:03:02]}  Nf8 {[%clk 0:02:52]} 11. Be3 {[%clk 0:03:01]}  Ng6 {[%clk 0:02:49]} 12. Nf4 {[%clk 0:02:55]}  Qc7 {[%clk 0:02:39]} 13. Bxg6 {[%clk 0:02:43]}  hxg6 {[%clk 0:02:35]} 14. h3 {[%clk 0:02:38]}  Bf5 {[%clk 0:02:31]} 15. Rfe1 {[%clk 0:02:36]}  Be4 {[%clk 0:02:23]} 16. Qg4 {[%clk 0:02:30]}  g5 {[%clk 0:01:52]} 17. Nh5 {[%clk 0:02:16]}  Bg6 {[%clk 0:01:51]} 18. Bd2 {[%clk 0:01:53]}  Rxe1+ {[%clk 0:01:36]} 19. Rxe1 {[%clk 0:01:52]}  Qc8 {[%clk 0:01:37]} 20. Qf3 {[%clk 0:01:42]}  Qd7 {[%clk 0:01:30]} 21. Ng3 {[%clk 0:01:32]}  Re8 {[%clk 0:01:22]} 22. Rxe8+ {[%clk 0:01:16]}  Qxe8 {[%clk 0:01:23]} 23. Qe2 {[%clk 0:01:16]}  Qe6 {[%clk 0:01:18]} 24. Qxe6 {[%clk 0:01:06]}  fxe6 {[%clk 0:01:19]} 25. Nf1 {[%clk 0:01:02]}  e5 {[%clk 0:01:04]} 26. dxe5 {[%clk 0:00:59]}  Bxe5 {[%clk 0:01:05]} 27. Be3 {[%clk 0:01:00]}  a5 {[%clk 0:01:02]} 28. Nd2 {[%clk 0:00:59]}  Bf7 {[%clk 0:01:02]} 29. a3 {[%clk 0:00:58]}  a4 {[%clk 0:00:57]} 30. Kf1 {[%clk 0:00:58]}  Kf8 {[%clk 0:00:57]} 31. Ke2 {[%clk 0:00:59]}  Ke7 {[%clk 0:00:57]} 32. Kd3 {[%clk 0:00:59]}  b5 {[%clk 0:00:55]} 33. f3 {[%clk 0:00:58]}  Kd6 {[%clk 0:00:52]} 34. Ne4+ {[%clk 0:00:58]}  Kd5 {[%clk 0:00:49]} 35. Nc5 {[%clk 0:00:56]}  Bd6 {[%clk 0:00:45]} 36. Na6 {[%clk 0:00:50]}  Bg6+ {[%clk 0:00:43]} 37. Kd2 {[%clk 0:00:47]}  Kc4 {[%clk 0:00:43]} 38. Nb4 {[%clk 0:00:42]}  c5 {[%clk 0:00:42]} 39. Nc6 {[%clk 0:00:41]}  Kb3 {[%clk 0:00:37]} 40. Kc1 {[%clk 0:00:41]}  Bd3 {[%clk 0:00:27]} 41. Nd8 {[%clk 0:00:40]}  Bf1 {[%clk 0:00:23]} 42. Nb7 {[%clk 0:00:38]}  Bf4 {[%clk 0:00:18]} 43. Na5+ {[%clk 0:00:36]}  Ka2 {[%clk 0:00:18]} 44. Bxf4 {[%clk 0:00:31]}  gxf4 {[%clk 0:00:18]} 45. Nb7 {[%clk 0:00:29]}  Bxg2 {[%clk 0:00:19]} 46. Nxc5 {[%clk 0:00:29]}  Bxf3 {[%clk 0:00:19]} 47. Ne6 {[%clk 0:00:28]}  g5 {[%clk 0:00:19]} 48. Nd4 {[%clk 0:00:27]}  Bg2 {[%clk 0:00:18]} 49. Nxb5 {[%clk 0:00:24]}  Bxh3 {[%clk 0:00:19]} 50. c4 {[%clk 0:00:23]}  g4 {[%clk 0:00:19]} 51. c5 {[%clk 0:00:24]}  g3 {[%clk 0:00:20]} 52. Nc3+ {[%clk 0:00:20]}  Kb3 {[%clk 0:00:20]} 53. Ne4 {[%clk 0:00:20]}  g2 {[%clk 0:00:20]} 54. Nd2+ {[%clk 0:00:19]}  Ka2 {[%clk 0:00:20]} 55. Nf3 {[%clk 0:00:19]}  Bg4 {[%clk 0:00:20]} 56. Ng1 {[%clk 0:00:19]}  f3 {[%clk 0:00:20]} 0-1


[Site "https://www.chess.com"]

[Event "Titled Tuesday Blitz December 27 Early 2022"]
[White "Christiansen, Johan-Sebastian"]
[Black "Guliev, Logman"]
[WhiteFideId "1512668"]
[BlackFideId "13400061"]
[WhiteElo "2579"]
[BlackElo "2250"]
[Result "1-0"]
[Round "05"]
[TimeControl "180+2"]
[Date "2022.12.27"]
[WhiteClock "0:01:07"]
[BlackClock "0:00:33"]

1. e4 {[%clk 0:03:00]}  c5 {[%clk 0:02:53]} 2. Nf3 {[%clk 0:03:00]}  d6 {[%clk 0:02:54]} 3. Nc3 {[%clk 0:03:00]}  a6 {[%clk 0:02:53]} 4. g3 {[%clk 0:03:00]}  e6 {[%clk 0:02:50]} 5. Bg2 {[%clk 0:03:00]}  Nf6 {[%clk 0:02:50]} 6. e5 {[%clk 0:03:00]}  dxe5 {[%clk 0:02:50]} 7. Nxe5 {[%clk 0:03:00]}  Be7 {[%clk 0:02:48]} 8. a4 {[%clk 0:03:00]}  O-O {[%clk 0:02:48]} 9. O-O {[%clk 0:03:00]}  Nbd7 {[%clk 0:02:46]} 10. Nc4 {[%clk 0:02:28]}  Nb6 {[%clk 0:02:42]} 11. Nxb6 {[%clk 0:02:27]}  Qxb6 {[%clk 0:02:41]} 12. a5 {[%clk 0:02:27]}  Qc7 {[%clk 0:02:41]} 13. d3 {[%clk 0:02:28]}  Bd7 {[%clk 0:02:41]} 14. Bf4 {[%clk 0:02:28]}  e5 {[%clk 0:02:40]} 15. Bg5 {[%clk 0:02:28]}  Bc6 {[%clk 0:02:40]} 16. Bxc6 {[%clk 0:02:24]}  Qxc6 {[%clk 0:02:40]} 17. Qe2 {[%clk 0:02:24]}  Qe6 {[%clk 0:02:07]} 18. Rfe1 {[%clk 0:02:18]}  Qh3 {[%clk 0:02:04]} 19. Bxf6 {[%clk 0:02:10]}  Bxf6 {[%clk 0:02:03]} 20. Qf3 {[%clk 0:02:08]}  Qd7 {[%clk 0:01:45]} 21. Nd5 {[%clk 0:02:07]}  Qc6 {[%clk 0:01:32]} 22. Rxe5 {[%clk 0:02:04]}  Bd8 {[%clk 0:01:07]} 23. Ne7+ {[%clk 0:01:48]}  Bxe7 {[%clk 0:01:02]} 24. Qxc6 {[%clk 0:01:49]}  bxc6 {[%clk 0:01:02]} 25. Rxe7 {[%clk 0:01:48]}  c4 {[%clk 0:01:01]} 26. dxc4 {[%clk 0:01:47]}  Rfd8 {[%clk 0:01:01]} 27. Rae1 {[%clk 0:01:40]}  Kf8 {[%clk 0:01:01]} 28. Rc7 {[%clk 0:01:36]}  Rd6 {[%clk 0:00:57]} 29. Ree7 {[%clk 0:01:33]}  Rf6 {[%clk 0:00:57]} 30. Kg2 {[%clk 0:01:27]}  g6 {[%clk 0:00:56]} 31. Re3 {[%clk 0:01:13]}  Rd8 {[%clk 0:00:52]} 32. Rf3 {[%clk 0:01:11]}  Rxf3 {[%clk 0:00:49]} 33. Kxf3 {[%clk 0:01:12]}  Rd2 {[%clk 0:00:49]} 34. Rxc6 {[%clk 0:01:11]}  Rxc2 {[%clk 0:00:49]} 35. b4 {[%clk 0:01:11]}  Rb2 {[%clk 0:00:48]} 36. Rb6 {[%clk 0:01:10]}  Ke7 {[%clk 0:00:45]} 37. b5 {[%clk 0:01:10]}  axb5 {[%clk 0:00:43]} 38. cxb5 {[%clk 0:01:11]}  Rb3+ {[%clk 0:00:42]} 39. Ke4 {[%clk 0:01:10]}  Kd7 {[%clk 0:00:40]} 40. Rb7+ {[%clk 0:01:09]}  Ke6 {[%clk 0:00:36]} 41. a6 {[%clk 0:01:07]}  f5+ {[%clk 0:00:33]} 42. Kd4 {[%clk 0:01:07]} 1-0


[Site "https://www.chess.com"]

[Event "Titled Tuesday Blitz December 27 Early 2022"]
[White "Clawitter, Craig"]
[Black "Sargsyan, Anna M."]
[WhiteFideId "2023105"]
[BlackFideId "13308130"]
[WhiteElo "2050"]
[BlackElo "2375"]
[Result "0-1"]
[Round "05"]
[TimeControl "180+2"]
[Date "2022.12.27"]
[WhiteClock "0:00:14"]
[BlackClock "0:01:30"]

1. e4 {[%clk 0:02:56]}  c6 {[%clk 0:02:58]} 2. d4 {[%clk 0:02:55]}  d5 {[%clk 0:02:59]} 3. e5 {[%clk 0:02:56]}  c5 {[%clk 0:02:55]} 4. Nf3 {[%clk 0:02:53]}  Nc6 {[%clk 0:02:54]} 5. dxc5 {[%clk 0:02:51]}  Bg4 {[%clk 0:02:54]} 6. a3 {[%clk 0:02:41]}  e6 {[%clk 0:02:53]} 7. b4 {[%clk 0:02:38]}  Bxf3 {[%clk 0:02:52]} 8. Qxf3 {[%clk 0:02:33]}  Nxe5 {[%clk 0:02:53]} 9. Bb5+ {[%clk 0:02:31]}  Nc6 {[%clk 0:02:38]} 10. c4 {[%clk 0:02:30]}  Nf6 {[%clk 0:02:37]} 11. Nc3 {[%clk 0:02:28]}  Be7 {[%clk 0:02:32]} 12. O-O {[%clk 0:02:14]}  O-O {[%clk 0:02:31]} 13. cxd5 {[%clk 0:02:13]}  exd5 {[%clk 0:02:32]} 14. Rd1 {[%clk 0:02:04]}  Ne5 {[%clk 0:02:29]} 15. Qg3 {[%clk 0:01:47]}  Ng6 {[%clk 0:02:29]} 16. Ra2 {[%clk 0:01:26]}  a6 {[%clk 0:02:28]} 17. Ba4 {[%clk 0:01:16]}  a5 {[%clk 0:02:08]} 18. Rad2 {[%clk 0:01:02]}  axb4 {[%clk 0:02:04]} 19. axb4 {[%clk 0:01:03]}  Qc8 {[%clk 0:01:52]} 20. Bb3 {[%clk 0:00:52]}  Ne4 {[%clk 0:01:52]} 21. Nxe4 {[%clk 0:00:45]}  dxe4 {[%clk 0:01:53]} 22. Bd5 {[%clk 0:00:20]}  Qf5 {[%clk 0:01:41]} 23. Qe3 {[%clk 0:00:20]}  Bg5 {[%clk 0:01:41]} 24. Bxe4 {[%clk 0:00:19]}  Qf6 {[%clk 0:01:36]} 25. Qd3 {[%clk 0:00:14]}  Bxd2 {[%clk 0:01:35]} 26. Bxd2 {[%clk 0:00:15]}  Rad8 {[%clk 0:01:33]} 27. Qg3 {[%clk 0:00:14]}  Qb2 {[%clk 0:01:30]} 0-1


[Site "https://www.chess.com"]

[Event "Titled Tuesday Blitz December 27 Early 2022"]
[White "Csonka, Balazs"]
[Black "Berezin, Viktor"]
[WhiteFideId "742910"]
[BlackFideId "14107872"]
[WhiteElo "2496"]
[BlackElo "2307"]
[Result "1-0"]
[Round "05"]
[TimeControl "180+2"]
[Date "2022.12.27"]
[WhiteClock "0:00:07"]
[BlackClock "0:00:05"]

1. c4 {[%clk 0:03:00]}  Nf6 {[%clk 0:02:27]} 2. Nc3 {[%clk 0:02:59]}  g6 {[%clk 0:02:26]} 3. Nf3 {[%clk 0:02:55]}  Bg7 {[%clk 0:02:26]} 4. e4 {[%clk 0:02:56]}  d6 {[%clk 0:02:26]} 5. d4 {[%clk 0:02:54]}  O-O {[%clk 0:02:26]} 6. Be2 {[%clk 0:02:54]}  e5 {[%clk 0:02:24]} 7. O-O {[%clk 0:02:46]}  Na6 {[%clk 0:02:23]} 8. Re1 {[%clk 0:02:42]}  Re8 {[%clk 0:02:20]} 9. Bf1 {[%clk 0:02:39]}  exd4 {[%clk 0:02:16]} 10. Nxd4 {[%clk 0:02:40]}  Nc5 {[%clk 0:02:16]} 11. f3 {[%clk 0:02:38]}  a5 {[%clk 0:02:14]} 12. Be3 {[%clk 0:02:35]}  Nfd7 {[%clk 0:02:09]} 13. Qd2 {[%clk 0:02:22]}  Ne5 {[%clk 0:02:05]} 14. Rad1 {[%clk 0:02:20]}  a4 {[%clk 0:02:05]} 15. Nd5 {[%clk 0:01:54]}  c6 {[%clk 0:01:32]} 16. Nc3 {[%clk 0:01:45]}  Qa5 {[%clk 0:01:29]} 17. Nc2 {[%clk 0:01:34]}  Bf8 {[%clk 0:00:43]} 18. h3 {[%clk 0:01:23]}  f6 {[%clk 0:00:43]} 19. f4 {[%clk 0:01:16]}  Nf7 {[%clk 0:00:43]} 20. Bd4 {[%clk 0:01:16]}  Bg7 {[%clk 0:00:40]} 21. g4 {[%clk 0:01:03]}  Bd7 {[%clk 0:00:39]} 22. Bg2 {[%clk 0:00:59]}  Rad8 {[%clk 0:00:39]} 23. Qf2 {[%clk 0:00:57]}  Bc8 {[%clk 0:00:36]} 24. Rb1 {[%clk 0:00:47]}  Rd7 {[%clk 0:00:24]} 25. Red1 {[%clk 0:00:40]}  Rde7 {[%clk 0:00:21]} 26. b4 {[%clk 0:00:31]}  axb3 {[%clk 0:00:21]} 27. axb3 {[%clk 0:00:32]}  Qc7 {[%clk 0:00:18]} 28. b4 {[%clk 0:00:27]}  Nxe4 {[%clk 0:00:12]} 29. Nxe4 {[%clk 0:00:24]}  Rxe4 {[%clk 0:00:13]} 30. Bb6 {[%clk 0:00:19]}  Qd7 {[%clk 0:00:06]} 31. Bxe4 {[%clk 0:00:19]}  Rxe4 {[%clk 0:00:07]} 32. c5 {[%clk 0:00:20]}  d5 {[%clk 0:00:07]} 33. Re1 {[%clk 0:00:20]}  f5 {[%clk 0:00:07]} 34. g5 {[%clk 0:00:18]}  Qe7 {[%clk 0:00:06]} 35. Rxe4 {[%clk 0:00:16]}  fxe4 {[%clk 0:00:06]} 36. h4 {[%clk 0:00:13]}  Qe6 {[%clk 0:00:06]} 37. Re1 {[%clk 0:00:03]}  Qg4+ {[%clk 0:00:05]} 38. Kf1 {[%clk 0:00:04]}  Qh3+ {[%clk 0:00:05]} 39. Kg1 {[%clk 0:00:02]}  Bf5 {[%clk 0:00:03]} 40. Ne3 {[%clk 0:00:02]}  d4 {[%clk 0:00:03]} 41. Nxf5 {[%clk 0:00:02]}  Qxf5 {[%clk 0:00:04]} 42. Qg2 {[%clk 0:00:02]}  e3 {[%clk 0:00:04]} 43. Qf3 {[%clk 0:00:02]}  h6 {[%clk 0:00:02]} 44. Kg2 {[%clk 0:00:02]}  hxg5 {[%clk 0:00:03]} 45. hxg5 {[%clk 0:00:03]}  Nxg5 {[%clk 0:00:03]} 46. fxg5 {[%clk 0:00:03]}  Qxg5+ {[%clk 0:00:04]} 47. Qg3 {[%clk 0:00:03]}  Qf5 {[%clk 0:00:04]} 48. Rf1 {[%clk 0:00:03]}  Qe4+ {[%clk 0:00:04]} 49. Qf3 {[%clk 0:00:03]}  Qc2+ {[%clk 0:00:04]} 50. Kg1 {[%clk 0:00:04]}  Kh7 {[%clk 0:00:03]} 51. Qh1+ {[%clk 0:00:03]}  Kg8 {[%clk 0:00:03]} 52. Qg2 {[%clk 0:00:03]}  Qd3 {[%clk 0:00:03]} 53. Qf3 {[%clk 0:00:03]}  Qc2 {[%clk 0:00:03]} 54. Qf7+ {[%clk 0:00:03]}  Kh7 {[%clk 0:00:03]} 55. Qf4 {[%clk 0:00:03]}  e2 {[%clk 0:00:03]} 56. Qh4+ {[%clk 0:00:04]}  Kg8 {[%clk 0:00:03]} 57. Qd8+ {[%clk 0:00:04]}  Kh7 {[%clk 0:00:03]} 58. Qh4+ {[%clk 0:00:04]}  Kg8 {[%clk 0:00:04]} 59. Qd8+ {[%clk 0:00:04]}  Kh7 {[%clk 0:00:04]} 60. Re1 {[%clk 0:00:05]}  Qd3 {[%clk 0:00:04]} 61. Qh4+ {[%clk 0:00:05]}  Kg8 {[%clk 0:00:04]} 62. Qg4 {[%clk 0:00:05]}  Qe3+ {[%clk 0:00:04]} 63. Kg2 {[%clk 0:00:05]}  d3 {[%clk 0:00:05]} 64. Qc8+ {[%clk 0:00:05]}  Kh7 {[%clk 0:00:05]} 65. Rh1+ {[%clk 0:00:04]}  Bh6 {[%clk 0:00:04]} 66. Qd7+ {[%clk 0:00:04]}  Kg8 {[%clk 0:00:04]} 67. Qd8+ {[%clk 0:00:04]}  Kg7 {[%clk 0:00:04]} 68. Qd7+ {[%clk 0:00:05]}  Kg8 {[%clk 0:00:05]} 69. Qc8+ {[%clk 0:00:04]}  Kg7 {[%clk 0:00:05]} 70. Qxb7+ {[%clk 0:00:05]}  Kg8 {[%clk 0:00:06]} 71. Qc8+ {[%clk 0:00:05]}  Kg7 {[%clk 0:00:06]} 72. Qd7+ {[%clk 0:00:05]}  Kg8 {[%clk 0:00:07]} 73. Qd8+ {[%clk 0:00:05]}  Kg7 {[%clk 0:00:07]} 74. Qd7+ {[%clk 0:00:05]}  Kg8 {[%clk 0:00:08]} 75. Qxc6 {[%clk 0:00:05]}  Qg5+ {[%clk 0:00:03]} 76. Kf2 {[%clk 0:00:05]}  Qf4+ {[%clk 0:00:03]} 77. Qf3 {[%clk 0:00:04]}  Qxf3+ {[%clk 0:00:04]} 78. Kxf3 {[%clk 0:00:05]}  Bd2 {[%clk 0:00:03]} 79. c6 {[%clk 0:00:05]}  e1=Q {[%clk 0:00:03]} 80. Rxe1 {[%clk 0:00:05]}  Bxe1 {[%clk 0:00:04]} 81. c7 {[%clk 0:00:05]}  d2 {[%clk 0:00:02]} 82. c8=Q+ {[%clk 0:00:06]}  Kg7 {[%clk 0:00:02]} 83. Qd7+ {[%clk 0:00:07]}  Kh6 {[%clk 0:00:02]} 84. Ke2 {[%clk 0:00:08]}  Bg3 {[%clk 0:00:03]} 85. Qg4 {[%clk 0:00:07]}  g5 {[%clk 0:00:03]} 86. Qxg3 {[%clk 0:00:06]}  Kg6 {[%clk 0:00:03]} 87. Kxd2 {[%clk 0:00:07]}  Kf6 {[%clk 0:00:04]} 88. Be3 {[%clk 0:00:07]}  Kf5 {[%clk 0:00:05]} 89. Qxg5+ {[%clk 0:00:07]}  Ke4 {[%clk 0:00:06]} 90. b5 {[%clk 0:00:07]}  Kf3 {[%clk 0:00:05]} 91. Qf4+ {[%clk 0:00:07]}  Kg2 {[%clk 0:00:05]} 92. Qf2+ {[%clk 0:00:07]} 1-0


[Site "https://www.chess.com"]

[Event "Titled Tuesday Blitz December 27 Early 2022"]
[White "Danielyan, Vahe"]
[Black "Narayanan.S.L"]
[WhiteFideId "13304828"]
[BlackFideId "5058422"]
[WhiteElo "2346"]
[BlackElo "2660"]
[Result "0-1"]
[Round "05"]
[TimeControl "180+2"]
[Date "2022.12.27"]
[WhiteClock "0:01:47"]
[BlackClock "0:01:29"]

1. e4 {[%clk 0:03:00]}  c6 {[%clk 0:02:54]} 2. d4 {[%clk 0:02:55]}  d5 {[%clk 0:02:55]} 3. exd5 {[%clk 0:02:56]}  Qxd5 {[%clk 0:02:54]} 4. Nc3 {[%clk 0:02:55]}  Qa5 {[%clk 0:02:54]} 5. Bc4 {[%clk 0:02:54]}  Bf5 {[%clk 0:02:52]} 6. Nf3 {[%clk 0:02:54]}  e6 {[%clk 0:02:52]} 7. O-O {[%clk 0:02:54]}  Nd7 {[%clk 0:02:51]} 8. Re1 {[%clk 0:02:54]}  Ngf6 {[%clk 0:02:51]} 9. a4 {[%clk 0:02:50]}  Bb4 {[%clk 0:02:48]} 10. Bd2 {[%clk 0:02:49]}  O-O {[%clk 0:02:47]} 11. h3 {[%clk 0:02:50]}  Rfd8 {[%clk 0:02:38]} 12. Qe2 {[%clk 0:02:49]}  Bxc2 {[%clk 0:02:30]} 13. Ne5 {[%clk 0:02:44]}  Bg6 {[%clk 0:02:21]} 14. Nxg6 {[%clk 0:02:39]}  hxg6 {[%clk 0:02:20]} 15. Bb3 {[%clk 0:02:16]}  Re8 {[%clk 0:02:12]} 16. Qc4 {[%clk 0:02:14]}  Nb6 {[%clk 0:02:10]} 17. Qd3 {[%clk 0:02:11]}  Rad8 {[%clk 0:02:09]} 18. Rad1 {[%clk 0:02:09]}  Nbd5 {[%clk 0:02:05]} 19. Qc4 {[%clk 0:02:06]}  Nb6 {[%clk 0:01:51]} 20. Qd3 {[%clk 0:02:03]}  c5 {[%clk 0:01:51]} 21. d5 {[%clk 0:01:53]}  exd5 {[%clk 0:01:42]} 22. Rxe8+ {[%clk 0:01:53]}  Rxe8 {[%clk 0:01:42]} 23. Qg3 {[%clk 0:01:49]}  c4 {[%clk 0:01:34]} 24. Bc2 {[%clk 0:01:49]}  d4 {[%clk 0:01:32]} 25. Nb1 {[%clk 0:01:47]}  d3 {[%clk 0:01:29]} 0-1


[Site "https://www.chess.com"]

[Event "Titled Tuesday Blitz December 27 Early 2022"]
[White "De Souza, Cristiano Gomes"]
[Black "Bas Mas, Jose Joaquin"]
[WhiteFideId "2151758"]
[BlackFideId "22219064"]
[WhiteElo "2018"]
[BlackElo "2197"]
[Result "0-1"]
[Round "05"]
[TimeControl "180+2"]
[Date "2022.12.27"]
[WhiteClock "0:01:14"]
[BlackClock "0:00:10"]

1. d4 {[%clk 0:03:00]}  f5 {[%clk 0:02:59]} 2. c4 {[%clk 0:03:00]}  Nf6 {[%clk 0:02:59]} 3. Nf3 {[%clk 0:03:01]}  e6 {[%clk 0:03:00]} 4. b3 {[%clk 0:03:01]}  Bb4+ {[%clk 0:02:59]} 5. Bd2 {[%clk 0:03:01]}  Be7 {[%clk 0:02:58]} 6. g3 {[%clk 0:03:00]}  b6 {[%clk 0:02:58]} 7. Bg2 {[%clk 0:03:00]}  Bb7 {[%clk 0:02:59]} 8. O-O {[%clk 0:03:01]}  O-O {[%clk 0:02:59]} 9. Bc3 {[%clk 0:03:01]}  Ne4 {[%clk 0:02:59]} 10. Nfd2 {[%clk 0:02:57]}  Nxc3 {[%clk 0:02:59]} 11. Nxc3 {[%clk 0:02:54]}  Bxg2 {[%clk 0:02:58]} 12. Kxg2 {[%clk 0:02:55]}  Bf6 {[%clk 0:02:58]} 13. e3 {[%clk 0:02:55]}  c5 {[%clk 0:02:57]} 14. Qf3 {[%clk 0:02:54]}  Nc6 {[%clk 0:02:55]} 15. Ne2 {[%clk 0:02:47]}  cxd4 {[%clk 0:02:50]} 16. exd4 {[%clk 0:02:47]}  Nxd4 {[%clk 0:02:50]} 17. Nxd4 {[%clk 0:02:47]}  Bxd4 {[%clk 0:02:50]} 18. Rad1 {[%clk 0:02:47]}  Qf6 {[%clk 0:02:42]} 19. Qb7 {[%clk 0:02:44]}  Rfd8 {[%clk 0:02:10]} 20. Nf3 {[%clk 0:02:43]}  e5 {[%clk 0:02:10]} 21. Rfe1 {[%clk 0:02:35]}  Bc3 {[%clk 0:02:05]} 22. Qd5+ {[%clk 0:02:24]}  Qe6 {[%clk 0:01:53]} 23. Qxe6+ {[%clk 0:02:18]}  dxe6 {[%clk 0:01:52]} 24. Rxd8+ {[%clk 0:02:18]}  Rxd8 {[%clk 0:01:49]} 25. Re3 {[%clk 0:02:16]}  Bd4 {[%clk 0:01:40]} 26. Nxd4 {[%clk 0:02:16]}  exd4 {[%clk 0:01:40]} 27. Rxe6 {[%clk 0:02:13]}  Kf7 {[%clk 0:01:35]} 28. Re1 {[%clk 0:02:13]}  Kf6 {[%clk 0:01:32]} 29. Kf3 {[%clk 0:02:13]}  g5 {[%clk 0:01:31]} 30. h3 {[%clk 0:02:13]}  h5 {[%clk 0:01:29]} 31. Rd1 {[%clk 0:02:07]}  a5 {[%clk 0:01:26]} 32. a3 {[%clk 0:02:06]}  Ke5 {[%clk 0:01:22]} 33. Re1+ {[%clk 0:02:06]}  Kd6 {[%clk 0:01:17]} 34. Rd1 {[%clk 0:02:00]}  Kc5 {[%clk 0:01:15]} 35. Ke2 {[%clk 0:02:00]}  a4 {[%clk 0:01:12]} 36. Kd3 {[%clk 0:01:58]}  axb3 {[%clk 0:01:09]} 37. Rb1 {[%clk 0:01:58]}  Ra8 {[%clk 0:00:57]} 38. Rxb3 {[%clk 0:01:57]}  Ra5 {[%clk 0:00:57]} 39. f4 {[%clk 0:01:45]}  gxf4 {[%clk 0:00:56]} 40. gxf4 {[%clk 0:01:46]}  h4 {[%clk 0:00:57]} 41. Rb5+ {[%clk 0:01:44]}  Rxb5 {[%clk 0:00:56]} 42. cxb5 {[%clk 0:01:45]}  Kd5 {[%clk 0:00:25]} 43. a4 {[%clk 0:01:33]}  Kc5 {[%clk 0:00:25]} 44. Kc2 {[%clk 0:01:32]}  Kc4 {[%clk 0:00:20]} 45. Kd2 {[%clk 0:01:32]}  Kb4 {[%clk 0:00:18]} 46. Kd3 {[%clk 0:01:32]}  Kxa4 {[%clk 0:00:18]} 47. Kxd4 {[%clk 0:01:33]}  Kxb5 {[%clk 0:00:19]} 48. Ke5 {[%clk 0:01:33]}  Kc4 {[%clk 0:00:17]} 49. Kxf5 {[%clk 0:01:34]}  b5 {[%clk 0:00:18]} 50. Ke6 {[%clk 0:01:32]}  b4 {[%clk 0:00:19]} 51. f5 {[%clk 0:01:32]}  b3 {[%clk 0:00:20]} 52. f6 {[%clk 0:01:33]}  b2 {[%clk 0:00:20]} 53. f7 {[%clk 0:01:33]}  b1=Q {[%clk 0:00:20]} 54. f8=Q {[%clk 0:01:32]}  Qe4+ {[%clk 0:00:20]} 55. Kd7 {[%clk 0:01:31]}  Qd3+ {[%clk 0:00:19]} 56. Kc6 {[%clk 0:01:24]}  Qxh3 {[%clk 0:00:17]} 57. Qc5+ {[%clk 0:01:24]}  Kb3 {[%clk 0:00:16]} 58. Qb5+ {[%clk 0:01:22]}  Kc2 {[%clk 0:00:15]} 59. Qa4+ {[%clk 0:01:16]}  Kd2 {[%clk 0:00:13]} 60. Qa1 {[%clk 0:01:14]}  Qc3+ {[%clk 0:00:09]} 61. Qxc3+ {[%clk 0:01:14]}  Kxc3 {[%clk 0:00:10]} 0-1


[Site "https://www.chess.com"]